Cogmind - Beta 13 @@@ ROGUE MODE // 2024.04.03 @ 00:59:21 Player: Bean Result: Destroyed self via exploding Fusion Modulator Performance ------------- Evolutions (1) 500 Regions Visited (3) 600 Robots Destroyed (26) 130 Value Destroyed (556) 556 Prototype IDs (0) 0 Alien Tech Used (0) 0 Bonus (25) 25 TOTAL SCORE: 1811 Bonus ------- High Alert Combat Kills 25 Cogmind --------- Core Integrity 0/400 Matter 271/300 Energy 265/265 System Corruption 0% Temperature Cool (12) Movement Flying (37) Location -9/Materials Parts ------- > --- POWER (1) -------- Improved Ion Engine > --- PROPULSION (3) --- Flight Unit Flight Unit > --- UTILITY (3) ------ Visual Processing Unit Visual Processing Unit > --- WEAPON (2) ------- Mini Grenade Launcher > --- INVENTORY (5) ---- Datajack Peak State ------------ > --- POWER ------------ Improved Ion Engine > --- PROPULSION ------- Flight Unit Flight Unit Flight Unit > --- UTILITY ---------- Weight Redist. System Visual Processing Unit Visual Processing Unit > --- WEAPON ----------- Light Assault Rifle > --- INVENTORY -------- ECM Suite Datajack [Rating: 12] Favorites ----------- Power Light Ion Engine Engine Light Ion Engine Propulsion Flight Unit Wheel Wheel Flight Unit Flight Unit Utility Visual Processing Unit Device ECM Suite Storage Small Storage Unit Processor Visual Processing Unit Weapon Small Laser Energy Gun Small Laser Ballistic Gun Light Assault Rifle Launcher Mini Grenade Launcher Special Melee Weapon Datajack Build | -11 -10 -10 -9 ------- Run | Yrd Mat Min Mat Slots Evolved 2 | . . . 2 Power . | . . . . Propulsion 1 | . . . 1 Utility 1 | . . . 1 Weapon . | . . . . Parts Attached 29 | 6 12 . 11 Power 4 | 1 1 . 2 Engine 4 | 1 1 . 2 Core . | . . . . Reactor . | . . . . Propulsion 7 | 2 3 . 2 Treads . | . . . . Leg . | . . . . Wheel 3 | 2 1 . . Hover . | . . . . Flight 4 | . 2 . 2 Utility 6 | 1 2 . 3 Device 3 | . 1 . 2 Storage 1 | 1 . . . Processor 2 | . 1 . 1 Hackware . | . . . . Protection . | . . . . Artifact . | . . . . Weapon 12 | 2 6 . 4 Energy Gun 7 | 2 4 . 1 Energy Cannon . | . . . . Ballistic Gun 1 | . . . 1 Ballistic Cannon . | . . . . Launcher 1 | . . . 1 Special Weapon . | . . . . Impact Weapon . | . . . . Slashing Weapon . | . . . . Piercing Weapon . | . . . . Special Melee Weapon 3 | . 2 . 1 Unidentified Prototypes . | . . . . Parts Lost 8 | . 1 . 7 Power . | . . . . Propulsion 3 | . 1 . 2 Utility 2 | . . . 2 Weapon 3 | . . . 3 Highest Loss Streak 4 | . 1 . 4 To Critical Strikes . | . . . . Average Slot Usage (%) 88 | . 91 100 79 Engine 12 | . 14 14 8 Wheel 4 | . 7 . . Flight 22 | . 18 28 25 Device 11 | . 8 14 14 Storage 2 | . 4 . . Processor 12 | . 9 14 16 Energy Gun 18 | . 25 28 7 Ballistic Gun 2 | . . . 6 Naked Turns . | . . . . Heaviest Build 10 | 10 10 7 10 Greatest Support 20 | 20 20 8 14 Greatest Overweight (x) 1 | . . . 1 Average Overweight (x) . | . . . . Largest Inventory Capacity 8 | 8 8 5 5 Average Capacity 5 | 6 5 5 5 Most Carried 4 | 3 4 4 4 Average Carried 2 | . 1 4 2 Final Capacity 8 | 8 5 5 5 Final Carried 4 | 1 4 4 1 Class Distribution -------------------- 79% | Scavenger-Mutant 20% | Mutant Dominant Class ---------------- Scavenger-Mutant | -10/Materials Scavenger-Mutant | -10/Mines Scavenger-Mutant | -9/Materials Resources | -11 -10 -10 -9 ----------- Run | Yrd Mat Min Mat Matter Collected 478 | 199 176 . 103 Remotely . | . . . . Salvage Created 636 | . 317 . 319 Parts 50 | . 34 . 16 Haulers Intercepted 1 | . 1 . . Recyclers Shooed . | . . . . Parts Field Recycled . | . . . . Retrieved Matter . | . . . . Parts Self-Destructed . | . . . . Prevented . | . . . . Kills | -11 -10 -10 -9 ------- Run | Yrd Mat Min Mat Combat Hostiles Destroyed 20 | . 9 . 11 Guns 18 | . 9 . 9 AOE 2 | . . . 2 Classes Destroyed 7 | . 5 . 2 Tunneler 1 | . . . 1 Hauler 1 | . 1 . . Operator 1 | . 1 . . Watcher 3 | . 3 . . Swarmer 10 | . 6 . 4 Grunt 9 | . 3 . 6 Duelist 1 | . . . 1 Best Kill Streak 9 | . 9 . 3 Combat Bots Only 8 | . 8 . 3 Max Kills in Single Turn 2 | . 2 . 2 Gunslinging . | . . . . Exploded 1 | . . . 1 Melee . | . . . . Uniques/NPCs Destroyed . | . . . . Combat | -11 -10 -10 -9 -------- Run | Yrd Mat Min Mat Hostile Shots Fired 131 | . 38 3 90 Missed 47 | . 8 3 36 Damage Taken 1053 | . 283 . 770 Core 538 | . 125 . 413 Absorbed by Shields . | . . . . Core Remaining (%) 75 | 100 . 50 . Volleys Fired 97 | . 47 . 50 Largest 2 | . 2 . 2 Hottest 80 | . 80 . 80 Shots Fired 134 | . 73 . 61 Gun 132 | . 73 . 59 Cannon . | . . . . Launcher 2 | . . . 2 Special . | . . . . Kinetic 25 | . . . 25 Thermal 107 | . 73 . 34 Explosive 2 | . . . 2 Electromagnetic . | . . . . Robot Hit Streak 13 | . 9 . 13 Robot Miss Streak 5 | . 5 . 5 Penetration Max . | . . . . Secondary Targets 1 | . 1 . . Max Gunslinging Chain 1 | . 1 . . Shots Hit Robots 79 | . 40 . 39 Core Hits 41 | . 21 . 20 Critical Kills . | . . . . Critical Parts Destroyed . | . . . . Critical Strikes . | . . . . Melee Attacks 6 | . 5 . 1 Impact . | . . . . Slashing . | . . . . Piercing . | . . . . Sneak Attacks 4 | . 3 . 1 Combat Hostiles . | . . . . Follow-up Attacks . | . . . . Damage Inflicted 1169 | . 444 . 725 Guns 847 | . 444 . 403 Cannons . | . . . . Explosions 322 | . . . 322 Melee . | . . . . Ramming . | . . . . Kinetic 115 | . . . 115 Thermal 926 | . 444 . 482 Explosive 128 | . . . 128 Electromagnetic . | . . . . Impact . | . . . . Slashing . | . . . . Piercing . | . . . . Highest Corruption . | . . . . Average Corruption . | . . . . Corruption Purged . | . . . . Corruption Blocked . | . . . . Overload Shots . | . . . . Overflow Damage 80 | . . . 80 Projectiles . | . . . . Explosions 80 | . . . 80 Melee . | . . . . Knockbacks . | . . . . Impact . | . . . . Kinetic . | . . . . Secondary . | . . . . Self-Inflicted Damage 85 | . . . 85 Shots 2 | . . . 2 Rammed . | . . . . Targets Rammed . | . . . . Kicked . | . . . . Crushed . | . . . . Highest Temperature 180 | . 180 . 61 Average Temperature 40 | . 43 . 29 Received Heat Transfer 219 | . 78 . 141 Siege Activations . | . . . . Robots Corrupted . | . . . . Combat Hostiles . | . . . . Parts Fried . | . . . . Impact Corruptions . | . . . . Robots Melted . | . . . . Combat Hostiles . | . . . . Parts Melted 2 | . 1 . 1 Heat Transferred 1775 | . 1025 . 750 Parts Sabotaged . | . . . . Parts Stolen . | . . . . Parts Stripped . | . . . . Power Chain Reactions . | . . . . Alert | -11 -10 -10 -9 ------- Run | Yrd Mat Min Mat Peak Influence 905 | . 905 300 400 Initial 285 | . . 285 117 Average 349 | . 448 299 278 Maximum Alert Level 3 | . 3 1 2 Low Security (%) 28 | 100 25 . 30 Level 1 49 | . 30 100 69 Level 2 1 | . 1 . . Level 3 20 | . 42 . . Level 4 . | . . . . Level 5 . | . . . . High Security . | . . . . Max Security . | . . . . Squads Dispatched 3 | . 2 . 1 Investigation 2 | . 1 . 1 Extermination . | . . . . Reinforcement 1 | . 1 . . Assault . | . . . . Garrison . | . . . . Intercept . | . . . . Searches Triggered . | . . . . Construction Impeded . | . . . . Haulers Reinforced . | . . . . Active Scanning Responses . | . . . . Cargo Convoy Interrupts . | . . . . Stealth | -11 -10 -10 -9 --------- Run | Yrd Mat Min Mat Distress Signals 4 | . 3 . 1 Communications Jammed . | . . . . Distress Signals . | . . . . Times Spotted 44 | . 20 4 20 Peak Tracking Total 8 | . 6 2 8 Tactical Retreats 5 | . . 1 4 Traps | -11 -10 -10 -9 ------- Run | Yrd Mat Min Mat Traps Triggered 2 | . 2 . . Indirectly . | . . . . Trap Hack Attempts . | . . . . Triggered . | . . . . Disarmed . | . . . . Reprogrammed . | . . . . Reused . | . . . . Traps Extracted . | . . . . Installed . | . . . . Triggered . | . . . . Machines | -11 -10 -10 -9 ---------- Run | Yrd Mat Min Mat Machines Disabled 3 | . . . 3 Max in Single Turn 3 | . . . 3 Machines Repaired . | . . . . Machines Dismantled . | . . . . Machines Sabotaged . | . . . . Overloaded Fab Kills . | . . . . Hacking | -11 -10 -10 -9 --------- Run | Yrd Mat Min Mat Machines Accessed 12 | . 9 . 3 Terminals 8 | . 6 . 2 Fabricators . | . . . . Repair Stations 1 | . 1 . . Recycling Units 3 | . 2 . 1 Scanalyzers . | . . . . Garrison Access . | . . . . Total Hacks 26 | . 18 . 8 Successful 16 | . 12 . 4 Failed 10 | . 6 . 4 Catastrophic 1 | . 1 . . Database Lockouts . | . . . . Manual 22 | . 14 . 8 Terminals 18 | . 11 . 7 Fabricators . | . . . . Repair Stations 3 | . 3 . . Recycling Units 5 | . 4 . 1 Scanalyzers . | . . . . Garrison Access . | . . . . Terminal Hacks 2 | . 2 . . Alert Level 1 | . 1 . . Dispatch Records 1 | . 1 . . Fabricator Hacks . | . . . . Repair Station Hacks 1 | . 1 . . Scan Component 1 | . 1 . . Recycling Unit Hacks . | . . . . Scanalyzer . | . . . . Garrison Access Hacks . | . . . . Unauthorized Hacks 13 | . 9 . 4 Terminals 8 | . 5 . 3 Assimilate 7 | . 5 . 2 Botnet 1 | . . . 1 Fabricators . | . . . . Repair Stations . | . . . . Recycling Units 5 | . 4 . 1 Monitor 1 | . 1 . . Reject 3 | . 2 . 1 Mask 1 | . 1 . . Scanalyzers . | . . . . Garrison Access . | . . . . Data Cores Recovered 1 | . 1 . . Used 1 | . 1 . . Hacking Detections 5 | . 3 . 2 Full Trace Events 2 | . 1 . 1 Feedback Events . | . . . . Feedback Blocked . | . . . . Robot Schematics Acquired . | . . . . Robots Built . | . . . . Authchips . | . . . . Time . | . . . . Total Robot Build Rating . | . . . . Part Schematics Acquired . | . . . . Parts Built . | . . . . Authchips . | . . . . Time . | . . . . Total Part Build Rating . | . . . . Parts Repaired . | . . . . Time . | . . . . Parts Recycled . | . . . . Recycled Matter . | . . . . Retrieved Matter . | . . . . Retrieved Components . | . . . . Parts Scanalyzed . | . . . . Part Schematics Acquired . | . . . . Parts Damaged . | . . . . Bothacking | -11 -10 -10 -9 ------------ Run | Yrd Mat Min Mat Used RIF Installer . | . . . . Robots Hacked 3 | . 2 . 1 Non-combat 3 | . 2 . 1 Combat . | . . . . Robot Hacks Applied 3 | . 2 . 1 parse_system 1 | . 1 . . no_distress 2 | . 1 . 1 Relay Couplers Released . | . . . . Fabnet Peak Effective % . | . . . . Robots Rewired . | . . . . Allies Hacked . | . . . . Hacks Repelled . | . . . . Allies | -11 -10 -10 -9 -------- Run | Yrd Mat Min Mat Total Allies . | . . . . Largest Group . | . . . . Highest-Rated Group . | . . . . Highest-Rated Ally . | . . . . Total Orders . | . . . . Ally Attacks . | . . . . Total Damage . | . . . . Kills . | . . . . Allies Corrupted . | . . . . Allies Melted . | . . . . Intel | -11 -10 -10 -9 ------- Run | Yrd Mat Min Mat Robot Analysis Total . | . . . . Derelict Logs Recovered . | . . . . Drone Launches . | . . . . Drone Recoveries . | . . . . Exploration | -11 -10 -10 -9 ------------- Run | Yrd Mat Min Mat Turns Passed 1041 | 57 513 109 362 Spaces Moved 1360 | 49 652 295 364 Core 4 | 4 . . . Treads . | . . . . Legs . | . . . . Wheels 149 | 45 104 . . Hover . | . . . . Flight 1207 | . 548 295 364 Fastest Speed 34 | 50 37 37 34 Average Speed 42 | 77 43 37 40 Slowest Speed 117 | 80 80 37 117 Overloaded Moves . | . . . . Propulsion Burnouts . | . . . . Robots Hopped 8 | . 4 . 4 Cave-ins Triggered . | . . . . Exploration Rate (%) 42 | 3 73 77 17 Regions Visited 3 Branch Regions 1 Pre-discovered Areas . | . . . . Known Exits Taken . | . . . . Unknown Exits Taken 3 | 1 1 1 . Scrap Searched 1 | . . 1 . Spaces Dug . | . . . . Terrain Destroyed 18 | . . . 18 Melee . | . . . . Projectile . | . . . . AOE 18 | . . . 18 Terrain Rammed . | . . . . Walls Destroyed . | . . . . Machines Disabled . | . . . . Actions | -11 -10 -10 -9 --------- Run | Yrd Mat Min Mat Total 1679 | 67 801 294 517 Wait 166 | 6 73 . 87 Move 1342 | 48 643 294 357 Hop 7 | . 4 . 3 Pick Up 24 | 7 11 . 6 Fast Attach . | . . . . Attach 25 | 6 11 . 8 Detach 3 | . 3 . . Swap 4 | . 1 . 3 Drop 5 | . 3 . 2 Fire 97 | . 47 . 50 Melee 6 | . 5 . 1 Ram . | . . . . Kick . | . . . . Crush . | . . . . Escape Stasis . | . . . . Rewire . | . . . . Trap . | . . . . Miscellaneous . | . . . . Route ------- -11/Scrapyard -10/Materials (discovered 3 exits: *Mat x2 / [*Min]) -10/Mines (discovered 2 exits: *Mat x2) -9/Materials History --------- Turn | Location | Event 2 | -11/Scrapyard | Met Revision 17 19 | -11/Scrapyard | Discovered new exit (range 16) 58 | -11/Scrapyard | Entered Materials 220 | -10/Materials | Destroyed 8 combat bots 244 | -10/Materials | Discovered new exit (range 13) 298 | -10/Materials | Discovered new exit (range 14) 322 | -10/Materials | Discovered new exit (range 18) 544 | -10/Materials | Build established: Scavenger-Mutant 571 | -10/Materials | Entered Mines 656 | -10/Mines | Discovered new exit (range 17) 678 | -10/Mines | Discovered new exit (range 3) 680 | -10/Mines | Entered Materials 680 | -9/Materials | Evolved 2 slots: Propulsion x1, Utility x1 817 | -9/Materials | Core integrity fell below 50% 889 | -9/Materials | Lost 4 parts (1n1u2w) 1033 | -9/Materials | Core integrity fell below 20% 1042 | -9/Materials | Destroyed self via exploding Fusion Modulator Last Messages --------------- Dispatching Investigation squad. Terminal unresponsive. K-01 Serf collects debris. K-01 Serf cleans the Matter Pump. Flight Unit destroyed. K-01 Serf cleans the Matter Pump. Connecting with Recycling Unit... >>Trojan(Reject) Trojan loaded successfully. Testing... Ejection routine running. ECM Suite destroyed. Lgt. Assault Rifle destroyed. G-34 Mercenary destroyed. Fusion Modulator explodes. Destroyed Heat Sink. G-34 Mercenary destroyed. T-07 Excavator destroyed. Recycling Unit disabled. Autogun tumbles out of recycling unit. Map ----- +----------------------------------------------------+ | ?????????????????????????????????????????????????? | | ?????????????????????????????????????????????????? | | ?????????????????????????????????????????????????? | | ?????????????????????????????????????????????????? | | ????????????????????? ???? ?????????????????????? | | ????????????????????? ??? ###??????????????????? | | ???????????????????? ??? ??????????????????? | | ???????????????????? ?? #??????????????????? | | ???????????????? ? ##? #??????????????????? | | ?????????????# ? ? +??????????????????? | | ?????????????# ? ? u#??????????????????? | | ?????????????# #??????????????????? | | ??????????? ?# """ """ #??????????????????? | | ??????????? # """ """ #??????????????????? | | ???????????? # """ """ #??????????????????? | | ??????#! ????+ #??????????????????? | | ??????# ???# #??????????????????? | | ??????# ??# % """ """k ###????????????????? | | ??????# ?# """ """ #????????????????? | | ??????# # """ """ #????????????????? | | ??????# + #????????????????? | | ?????????????# ] #????????????????? | | ?????????????### #???##???????????? | | ???????????????# #### % ; #???????????? | | ???????????????# # =% #???????????? | | ???????????????# # @ =% #???????????? | | ?????????####### # Y #???????????? | | ????????## # [ #??????????? | | ????????#" ^ # " ;##??????????? | | ????????#T !! """ # """ ##???????????? | | ????????#" !! """ ###############????????????? | | ????????## """ # = #????????????????? | | ?????????# """ # #######??????????? | | ?????????# # """"""" # #??????????? | | ?????????# #%""""""" # "S #??????????? | | ?????????# + """"""" # """ #??????????? | | ?????????# #%""""""" # "" #??????????? | | ?????????# #####+## # """"""" # #??????????? | | ?????????# # # # % # #??????????? | | ?????????# # # #######+### #??????????? | | ?????????# # # #?????# ####+####??????????? | | ?????????# #! """ # #?????# #????????????? | | ?????????# # """ # #?????#% #????????????? | | ?????????# # """ # #?????# #????????????? | | ?????????# ######## #?????# ##????????????? | | ?????????# #??????# %#?????# #?????????????? | | ????????##+######## #?????# #?????????????? | | ????????# # ####### #?????????????? | | ????????# """ # #?????????????? | | ????????#]]] "T" # #?????????????? | +----------------------------------------------------+ Best States ------------- Heat Dissipation 28 Energy Generation 12 Energy Capacity 265 Matter Stores 300 Matter Capacity 300 Sight Range 18 Terrain Scan Density 10 ECM Strength 1 Additional Mass Support 6 Evasion (%) 63 Item Schematics ----------------- None Robot Schematics ------------------ None Fabricated ------------ Nothing Alien Tech Used ----------------- None Achievements -------------- Dynamic Key True Hacker Challenges ------------ None Game ------ Seed MicroUtilitySource Manual? 0 Play Time 00:25:45 Cumulative 4.8 hours Start 2024.04.03 @ 00:35:55 End 2024.04.03 @ 00:59:21 Sessions 1 Manual Loads 0 Difficulty Rogue Special Mode None Game No. 10 Rogue 10 Adventurer 0 Explorer 0 Win Type - Total 0 Types 0/0/0/0/0/0/0/0/0 Lore% 7 Gallery% 12 Achievement% 12 Wizard Run 0 Options --------- Layout 2 ASCII 0 Keyboard 0 Movement Numpad Keybinds 0 Fullscreen 1 Font 24/Smallcaps Map View 50x44 Zoom Use 0% Tactical HUD 0 Map Filters NONE Filters NONE Steam X RUN: caa2cbc5-713e-4f97-a7ca-a373797198a5